[Event "Chinese League Div-A Rapid 2022"]
[Site "Fuling,Chongqing"]
[Date "2022.09.08"]
[Round "3.13"]
[White "Zhao, Yuanhe"]
[Black "Peng, Hongchi"]
[Result "1-0"]
[ECO "A17"]
[WhiteElo "2440"]
[BlackElo "2375"]
[Annotator "TA"]
[PlyCount "129"]
[EventDate "2022.09.07"]
[EventType "team-tourn"]
[EventCountry "CHN"]
[SourceTitle "playchess.com"]
[Source "ChessBase"]
[SourceQuality "1"]
[TimeControl "1500+10"]

{[%evp 9,129,0,25,7,18,-7,12,0,22,0,15,15,23,18,20,13,19,27,17,33,20,0,0,0,0,0,0,0,0,-108,-29,-92,-80,-97,0,-98,57,-77,59,57,57,56,56,57,58,57,55,55,66,24,40,47,45,18,43,41,41,41,40,40,36,6,188,188,197,197,197,191,219,195,240,166,132,51,51,51,51,51,174,174,168,68,68,68,68,68,68,68,879,857,834,122,1959,1664,1566,1444,29958,29960,29957,29959,29959,29960,29960,29961,29961,29962,29962,29963,29967,29959,5193,5081,29965,29963,29972,29972,29970,29972,29971,29969,29950,29945]} 1. Nf3 {[%emt 0:00:01]} Nf6 {[%emt 0:00:02]} 2. c4 {[%emt 0:00:01]} e6 {[%emt 0:00:01]} 3. Nc3 {[%emt 0:00:01]} d5 {[%emt 0:00:04]} 4. e3 {[%emt 0:00:01]} c5 {[%emt 0:00:03]} 5. cxd5 {[%emt 0:00:03]} Nxd5 {[%emt 0:00:04]} 6. Qc2 {[%emt 0:00:12] A17: English Opening: 1...Nf6 with ...Bb4.} Be7 {[%emt 0:00:06]} 7. b3 {[%emt 0:00:21]} O-O {[%emt 0:00:26]} 8. Bb2 {[%emt 0:00:02] [#] The position is equal.} Nd7 $146 {[%emt 0:01:48][%cal Bb8d7,Bd7f6,Bf6e4][%mdl 32]} ({Predecessor:} 8... Nc6 9. a3 Bd7 10. Bd3 h6 11. g4 Rc8 12. Rg1 Be8 13. h4 Ndb4 14. axb4 Nxb4 15. Bh7+ Kh8 {½-½ (61) Keymer,V (2686)-Le,Q (2722) Biel 2022}) 9. Be2 {[%emt 0:01:34]} b6 {[%emt 0:00:23]} 10. Nxd5 {[%emt 0:01:08]} exd5 {[%emt 0:00:01]} 11. O-O {[%emt 0:00:02]} Bb7 {[%emt 0:00:06]} 12. Rac1 {[%emt 0:00:09]} Nf6 {[%emt 0:00:22]} 13. d4 {[%emt 0:00:12]} Ne4 {[%emt 0:00:11]} 14. Rfd1 {[%emt 0:00:11]} Rc8 {[%emt 0:00:39]} 15. Qb1 {[%emt 0:00:12]} Bd6 {[%emt 0:00:19]} 16. g3 {[%emt 0:01:29]} c4 {[%emt 0:00:43]} 17. bxc4 {[%emt 0:03:22]} dxc4 {[%emt 0:00:01]} 18. d5 {[%emt 0:00:01]} c3 {[%emt 0:00:24]} 19. Ba1 {[%emt 0:00:02] [#]} (19. Qxe4 $11 cxb2 20. Rb1) 19... f5 {[%emt 0:00:08]} (19... Re8 $1 $17 20. Qd3 Qf6) 20. Qb3 {[%emt 0:00:40]} (20. Nd4 $11 {remains equal.} Bxd5 21. Qd3) 20... Qf6 $17 {[%emt 0:01:11]} 21. Rd4 {[%emt 0:05:44][%cal Ra1c3]} Rc5 {[%emt 0:00:09]} ({Don't do} 21... Nd2 22. Nxd2 cxd2 23. Rxc8 Rxc8 24. Bb2 $16 (24. Bc3 Be5 $17)) (21... g5 $17 22. Bd3 (22. Bxc3 Nxc3 23. Rxc3 Rxc3 $17) 22... g4) 22. a4 {[%emt 0:01:49] [#]} (22. Bxc3 $11 Nxc3 23. Rxc3) 22... a6 $2 {[%emt 0:02:37]} (22... g5 $1 $17 {[%cal Rg5g4] Threatens to win with ...g4.} 23. Bxc3 Nxc3 24. Rxc3 Rxc3 25. Qxc3 g4) 23. Rc2 {[%emt 0:05:45]} (23. Bxc3 $14 Nxc3 24. Rxc3) 23... Rb8 {[%emt 0:02:06]} ({Better is} 23... Rfc8 $17) 24. Bxc3 $14 {[%emt 0:02:44]} Nxc3 {[%emt 0:02:24]} 25. Rxc3 {[%emt 0:00:02]} Rxc3 {[%emt 0:00:01]} 26. Qxc3 {[%emt 0:00:01]} Bc5 {[%emt 0:00:01]} 27. Rd3 {[%emt 0:00:54]} Qxc3 {[%emt 0:00:02]} 28. Rxc3 {[%emt 0:00:02]} Bxd5 {[%emt 0:00:01]} 29. Nh4 {[%emt 0:00:45]} (29. Ne5 $5 {[%cal Re2a6]}) 29... g6 {[%emt 0:01:07]} 30. Bxa6 {[%emt 0:00:14]} Be4 {[%emt 0:01:00]} 31. f3 {[%emt 0:01:14]} Ba8 {[%emt 0:00:01]} 32. Kf2 {[%emt 0:00:26]} Kf7 {[%emt 0:00:20]} 33. f4 {[%emt 0:00:23]} Kf6 {[%emt 0:01:11]} 34. Nf3 {[%emt 0:00:05]} Bc6 {[%emt 0:00:17]} 35. Bb5 {[%emt 0:00:25]} (35. a5 $5) 35... Be4 {[%emt 0:01:18] This bishop pair is nice.} (35... Bxb5 $1 $11 {and Black is okay.} 36. axb5 Ra8) 36. Ng5 $18 {[%emt 0:00:18]} Rd8 {[%emt 0:00:10]} 37. Nxe4+ {[%emt 0:00:12]} ({Don't take} 37. Nxh7+ Kg7) 37... fxe4 {[%emt 0:00:01][%mdl 4096] Endgame KRB-KRB} 38. Ke2 {[%emt 0:00:10] Prevents Rd2+.} Kf5 {[%emt 0:01:18]} 39. h3 {[%emt 0:00:01]} h5 {[%emt 0:00:01]} 40. Rc1 {[%emt 0:00:03][%cal Oa4a5] Hoping for a5!} Bb4 {[%emt 0:03:06]} 41. Rd1 {[%emt 0:00:09] Against Rd2+} ({White should try} 41. Rc2 $16) 41... Rxd1 $14 {[%emt 0:02:56]} 42. Kxd1 {[%emt 0:00:03] KB-KB} Bc5 43. Ke2 {[%emt 0:00:00]} g5 {[%emt 0:01:24]} ({Black should play} 43... Bd6 $14) 44. Bd7+ {[%emt 0:00:30]} Kf6 {[%emt 0:00:01]} 45. h4 {[%emt 0:00:41]} (45. Bc6 $18) 45... gxh4 $1 {[%emt 0:00:04]} 46. gxh4 {[%emt 0:00:01]} Be7 {[%emt 0:00:08]} 47. Kf2 {[%emt 0:00:11]} Kg6 {[%emt 0:00:07]} 48. Kg3 {[%emt 0:00:19] Strongly threatening Be8+.} Kf6 $2 {[%emt 0:00:23][%mdl 8192] Black is on the road to losing.} (48... Bc5 $14) 49. Be8 $18 {[%emt 0:00:09]} Bc5 {[%emt 0:00:25]} 50. Kf2 {[%emt 0:00:01]} Kf5 $2 {[%emt 0:00:01][%mdl 8192]} (50... Be7 $16 51. Bxh5 Kg7) 51. Bxh5 {[%emt 0:00:02] White threatens Bf7 and mate.} Be7 {[%emt 0:00:03]} 52. Kg3 {[%emt 0:00:01] Intending Bf7 and mate.} Bc5 {[%emt 0:00:29]} 53. Bg4+ {[%emt 0:00:01]} Kf6 {[%emt 0:00:00]} 54. Kf2 {[%emt 0:00:01]} Bb4 {[%emt 0:00:06]} 55. h5 {[%emt 0:00:06]} Bc5 {[%emt 0:00:03]} 56. Bd7 {[%emt 0:00:02]} Bf8 {[%emt 0:00:17]} 57. Bc6 {[%emt 0:00:11]} Kf5 {[%emt 0:00:04]} 58. Bd5 {[%emt 0:00:01]} Kg4 {[%emt 0:00:15]} 59. Bf7 {[%emt 0:00:06]} Kf5 {[%emt 0:00:58]} 60. Bg6+ {[%emt 0:00:03]} Kg4 {[%emt 0:00:01]} 61. Bxe4 {[%emt 0:00:01] White mates.} Kxh5 {[%emt 0:00:01]} 62. Kf3 {[%emt 0:00:01]} Kh6 {[%emt 0:00:07]} 63. Bd3 {[%emt 0:00:05]} Kg7 {[%emt 0:00:05]} 64. e4 {[%emt 0:00:01][%cal Be3e4,Be4e5][%mdl 32]} Kf6 {[%emt 0:00:01]} 65. e5+ {[%emt 0:00:01] Weighted Error Value: White=0.25 (precise) /Black=0.46} 1-0

[Event "Chinese League Div-A Rapid 2022"]
[Site "Fuling,Chongqing"]
[Date "2022.09.08"]
[Round "3.14"]
[White "Wang, Yu A."]
[Black "Ren, Xiaoyi"]
[Result "1/2-1/2"]
[ECO "C45"]
[WhiteElo "2271"]
[BlackElo "2250"]
[Annotator "NA RC"]
[PlyCount "26"]
[EventDate "2022.09.07"]
[EventType "team-tourn"]
[EventCountry "CHN"]
[SourceTitle "playchess.com"]
[Source "ChessBase"]
[SourceQuality "1"]
[TimeControl "1500+10"]

1. e4 {[%emt 0:00:01]} e5 {[%emt 0:00:03]} 2. Nf3 {[%emt 0:00:01]} Nc6 {[%emt 0:00:01]} 3. d4 {[%emt 0:00:01]} exd4 {[%emt 0:00:03]} 4. Nxd4 {[%emt 0:00:01]} Bc5 {[%emt 0:00:01]} 5. Nb3 {[%emt 0:00:01]} Bb6 {[%emt 0:00:04]} 6. Nc3 {[%emt 0:00:01]} Nf6 {[%emt 0:00:17]} 7. Bg5 {[%emt 0:00:08]} h6 {[%emt 0:02:34]} 8. Bh4 {[%emt 0:00:04]} g5 {[%emt 0:00:03]} 9. Bg3 {[%emt 0:00:02]} d6 {[%emt 0:01:14]} 10. Qe2 {[%emt 0:02:44]} Qe7 {[%emt 0:03:24]} 11. O-O-O {[%emt 0:00:53]} Bd7 {[%emt 0:00:11]} 12. Nd5 {[%emt 0:06:26]} Nxd5 {[%emt 0:00:12]} 13. exd5 {[%emt 0:00:01]} Qxe2 {[%emt 0:01:35]} 1/2-1/2

[Event "Chinese League Div-A Rapid 2022"]
[Site "Fuling,Chongqing"]
[Date "2022.09.08"]
[Round "3.15"]
[White "Li, Ruofan"]
[Black "Chu, Ruotong"]
[Result "1/2-1/2"]
[ECO "D28"]
[WhiteElo "2302"]
[BlackElo "2185"]
[Annotator "RC"]
[PlyCount "66"]
[EventDate "2022.09.07"]
[EventType "team-tourn"]
[EventCountry "CHN"]
[SourceTitle "playchess.com"]
[Source "ChessBase"]
[SourceQuality "1"]
[TimeControl "1500+10"]

1. d4 {[%emt 0:00:02]} d5 {[%emt 0:00:01]} 2. c4 {[%emt 0:00:02]} dxc4 {[%emt 0:00:02]} 3. Nf3 {[%emt 0:00:01]} Nf6 {[%emt 0:00:07]} 4. e3 {[%emt 0:00:03]} e6 {[%emt 0:00:02]} 5. Bxc4 {[%emt 0:00:01]} a6 {[%emt 0:00:08]} 6. O-O {[%emt 0:00:08]} c5 {[%emt 0:00:01]} 7. Qe2 {[%emt 0:00:01]} b5 {[%emt 0:00:28]} 8. Bd3 {[%emt 0:00:02]} Nbd7 {[%emt 0:00:11]} 9. a4 {[%emt 0:00:06]} c4 {[%emt 0:00:03]} 10. Bc2 {[%emt 0:00:17]} Bb7 {[%emt 0:00:01]} 11. e4 {[%emt 0:00:17]} Be7 {[%emt 0:00:25]} 12. e5 {[%emt 0:00:43]} Nd5 {[%emt 0:00:16]} 13. Nc3 {[%emt 0:00:30]} h6 {[%emt 0:06:48]} 14. axb5 {[%emt 0:07:10]} Nxc3 {[%emt 0:00:43]} 15. bxc3 {[%emt 0:00:02]} axb5 {[%emt 0:00:02]} 16. Rb1 {[%emt 0:00:02]} Qa5 {[%emt 0:02:36]} 17. Bd2 {[%emt 0:01:21]} Nb6 {[%emt 0:00:36]} 18. h3 {[%emt 0:00:44]} Nd5 {[%emt 0:00:28]} 19. Qe4 {[%emt 0:02:17]} O-O-O {[%emt 0:03:55]} 20. Ra1 {[%emt 0:01:37]} Qb6 {[%emt 0:00:03]} 21. Qe2 {[%emt 0:00:04]} Kd7 {[%emt 0:02:17]} 22. Nh2 {[%emt 0:02:04]} Ra8 {[%emt 0:01:19]} 23. Qh5 {[%emt 0:00:32]} g6 {[%emt 0:00:31]} 24. Qe2 {[%emt 0:00:02]} h5 {[%emt 0:01:20]} 25. Nf3 {[%emt 0:00:32]} Rxa1 {[%emt 0:01:00]} 26. Rxa1 {[%emt 0:00:01]} Ra8 {[%emt 0:00:01]} 27. Qe1 {[%emt 0:01:50]} Rxa1 {[%emt 0:00:37]} 28. Qxa1 {[%emt 0:00:01]} b4 {[%emt 0:03:43]} 29. cxb4 {[%emt 0:00:29]} Nxb4 {[%emt 0:00:39]} 30. Ba4+ {[%emt 0:01:11]} Bc6 {[%emt 0:00:16]} 31. Ng5 {[%emt 0:04:24]} Bxg5 {[%emt 0:00:33]} 32. Bxg5 {[%emt 0:00:02]} Bxa4 {[%emt 0:00:31]} 33. Qxa4+ {[%emt 0:00:02]} Nc6 {[%emt 0:00:02]} 1/2-1/2

[Event "Chinese League Div-A Rapid 2022"]
[Site "Fuling,Chongqing"]
[Date "2022.09.08"]
[Round "3.16"]
[White "Zhao, Jun"]
[Black "Ma, Zhonghan"]
[Result "1-0"]
[ECO "C65"]
[WhiteElo "2619"]
[BlackElo "2485"]
[Annotator "TA"]
[PlyCount "169"]
[EventDate "2022.09.07"]
[EventType "team-tourn"]
[EventCountry "CHN"]
[SourceTitle "playchess.com"]
[Source "ChessBase"]
[SourceQuality "1"]
[TimeControl "1500+10"]

{[%evp 9,169,18,20,4,6,0,0,0,8,-2,16,8,12,8,12,0,2,12,119,112,113,111,117,115,161,133,210,177,197,191,236,185,222,233,235,193,190,185,245,241,204,217,236,223,289,306,307,306,314,307,281,277,262,248,255,222,290,256,271,275,419,414,458,407,458,420,441,0,458,458,458,458,458,458,458,458,458,444,443,436,429,0,418,0,404,337,390,387,535,528,957,932,877,790,692,515,1149,1120,1047,897,899,430,359,0,908,883,899,891,891,864,710,962,971,880,1152,1119,771,114,114,114,113,114,319,302,137,137,626,626,626,536,1864,1864,1202,1141,29943,29950,5787,12166,5210,4343,4336,3857,29972,29965,29973,29974,29974,29975,29975,29976,29977,29976,29976,29976,29976,29976,29978,29979,29979,29980,29979,29979]} 1. e4 {[%emt 0:00:39] Mekhitarian,K} e5 {[%emt 0:00:37]} 2. Nf3 {[%emt 0:00:00]} Nc6 {[%emt 0:00:17]} 3. Bb5 {[%emt 0:00:00]} Nf6 {[%emt 0:00:12]} 4. d3 {[%emt 0:00:00]} Bc5 {[%emt 0:00:08]} 5. Bxc6 {[%emt 0:00:57]} dxc6 {[%emt 0:00:02]} 6. Qe2 {[%emt 0:00:06] C65: Ruy Lopez: Berlin Defence (3...Nf6), unusual lines and 4 0-0 Bc5.} Nd7 {[%emt 0:00:29]} 7. Nbd2 {[%emt 0:00:12]} O-O {[%emt 0:00:15] 7...0-0 has lost popularity.} 8. Nc4 {[%emt 0:00:03] The position is equal.} Re8 {[%emt 0:00:13]} 9. Bd2 {[%emt 0:00:03]} Bd6 {[%emt 0:00:53]} 10. h4 {[%emt 0:00:37]} Nf8 {[%emt 0:02:32]} 11. h5 {[%emt 0:00:08]} Ne6 {[%emt 0:00:39]} 12. O-O-O {[%emt 0:00:52]} (12. Nfxe5 Nd4 13. Nxf7 Kxf7 $17) (12. Ncxe5 Bxe5 13. Nxe5 Nd4 14. Nxf7 Kxf7 $17) 12... c5 {[%emt 0:00:27] [#]} 13. g4 $5 $146 {[%emt 0:03:37][%cal Bg2g4,Bg4g5][%mdl 8] An interesting novelty.} (13. Nfxe5 $2 Bxe5 14. Nxe5 Nd4 $19) ({Predecessor:} 13. Qf1 f6 14. Nh4 Nd4 15. c3 Nc6 16. Nf5 Bxf5 17. exf5 h6 18. g4 Bf8 19. Qe2 {½-½ (60) Caruana,F (2787)-Karjakin,S (2769) Wijk aan Zee 2016 CBM 171 [Mekhitarian,K]}) 13... Nf4 {[%emt 0:07:38]} (13... f6 $11 {keeps the balance.}) 14. Bxf4 $16 {[%emt 0:00:03]} exf4 {[%emt 0:00:01]} 15. g5 {[%emt 0:00:37] White is more active.} b5 {[%emt 0:00:31]} 16. Nxd6 {[%emt 0:00:55]} Qxd6 {[%emt 0:00:02]} (16... cxd6 $16 17. h6 g6) 17. Rh4 {[%emt 0:00:08]} Be6 {[%emt 0:00:59]} (17... c4 $16) 18. h6 {[%emt 0:00:18]} g6 {[%emt 0:02:38]} 19. Qd2 {[%emt 0:00:01]} b4 {[%emt 0:00:42]} 20. Qxf4 {[%emt 0:00:24]} ({Not} 20. Rxf4 Bxa2 21. e5 Qa6 $14) 20... Qxf4+ {[%emt 0:00:19]} 21. Rxf4 {[%emt 0:00:02]} a5 {[%emt 0:00:02]} 22. b3 {[%emt 0:00:49]} a4 {[%emt 0:00:17]} 23. Kd2 {[%emt 0:00:10]} axb3 {[%emt 0:00:28]} (23... Red8 $142 24. Ke3 axb3 25. axb3 Ra5) 24. axb3 $18 {[%emt 0:00:03]} Ra2 {[%emt 0:00:01]} 25. Rb1 {[%emt 0:00:01]} Kf8 {[%emt 0:01:26]} 26. Rf6 {[%emt 0:01:34]} Bg4 {[%emt 0:00:59]} 27. Nh2 {[%emt 0:00:51]} Bd7 {[%emt 0:00:53]} 28. Nf1 {[%emt 0:00:45]} Re6 {[%emt 0:00:53]} 29. Rxe6 {[%emt 0:00:35]} Bxe6 {[%emt 0:00:02][%mdl 4096] Endgame KRB-KRN} 30. Ne3 {[%emt 0:00:09]} Ke7 {[%emt 0:00:17]} 31. e5 {[%emt 0:03:46]} Kd7 {[%emt 0:00:31]} 32. Ke2 {[%emt 0:00:53]} Kc6 {[%emt 0:00:33]} 33. Kf3 {[%emt 0:00:13]} Ra8 {[%emt 0:01:03]} 34. Ke4 {[%emt 0:01:07]} Rd8 {[%emt 0:00:05]} (34... Kd7 {was necessary.} 35. Rc1 c6) 35. Ra1 {[%emt 0:00:28]} Rd4+ {[%emt 0:00:59]} 36. Kf3 {[%emt 0:00:02]} Rd8 {[%emt 0:00:03]} 37. Kg3 {[%emt 0:00:26]} Kb6 {[%emt 0:00:35]} 38. Kf3 {[%emt 0:01:52]} Kc6 $1 {[%emt 0:00:02]} 39. Ke2 {[%emt 0:00:01]} Kb6 {[%emt 0:00:11]} 40. f4 {[%emt 0:01:38]} Kc6 {[%emt 0:00:04]} 41. Nf1 {[%emt 0:00:14]} Bd5 {[%emt 0:00:36]} 42. Ke3 {[%emt 0:00:11]} Kb6 {[%emt 0:01:03]} 43. Nd2 {[%emt 0:00:05]} Re8 {[%emt 0:00:12]} 44. Ra4 {[%emt 0:00:38]} Rd8 {[%emt 0:00:22]} 45. Ra1 {[%emt 0:00:17]} Re8 $1 {[%emt 0:00:01]} 46. Nf1 $2 {[%emt 0:02:27]} (46. Ne4 $18) 46... Be6 $2 {[%emt 0:00:08][%mdl 8192]} (46... Rd8 $1 $11) 47. Ng3 {[%emt 0:00:05]} Bd5 {[%emt 0:00:08]} 48. Ne4 {[%emt 0:00:55] [#] And now Nf6 would win.} Bxe4 {[%emt 0:00:06]} 49. dxe4 {[%emt 0:00:01] Strongly threatening Rd1. KR-KR} Kb5 {[%emt 0:00:37]} 50. Rd1 {[%emt 0:00:06]} Kc6 {[%emt 0:00:25]} 51. Rd5 {[%emt 0:00:10]} Ra8 {[%emt 0:00:09]} 52. Kd2 {[%emt 0:01:01]} Ra1 {[%emt 0:00:43]} (52... Ra2 $142 53. Rd8 c4) 53. Rd8 {[%emt 0:00:01]} Rf1 {[%emt 0:00:11]} 54. Ke3 {[%emt 0:00:36]} Re1+ {[%emt 0:00:05]} 55. Kf3 {[%emt 0:00:09]} (55. Kf2 $142 Rxe4 56. Kf3) 55... Rf1+ {[%emt 0:00:02]} 56. Ke3 $2 {[%emt 0:01:11]} (56. Kg4) 56... Re1+ $1 {[%emt 0:00:01] [#]} 57. Kf2 $1 {[%emt 0:00:01]} ({Weaker is} 57. Kf3 c4 58. Rb8 (58. bxc4 Rf1+ 59. Ke2 Rxf4 $18) 58... Rf1+ 59. Ke3 Re1+ 60. Kd4 Rf1 $18) 57... Rxe4 {[%emt 0:00:04]} 58. Kf3 {[%emt 0:00:01]} Re1 {[%emt 0:00:15]} 59. Rh8 {[%emt 0:01:25]} Rf1+ {[%emt 0:00:04]} 60. Ke4 {[%emt 0:00:12]} Re1+ {[%emt 0:00:02]} 61. Kd3 {[%emt 0:00:09]} Rf1 {[%emt 0:00:03]} 62. Rxh7 {[%emt 0:00:13]} Rxf4 {[%emt 0:00:01]} 63. Rg7 $2 {[%emt 0:00:01]} (63. e6 $18 fxe6 64. Rg7) 63... Kd5 $16 {[%emt 0:00:12]} 64. h7 {[%emt 0:00:01]} Rh4 {[%emt 0:00:01]} 65. Rxf7 {[%emt 0:00:01] Threatens to win with Re7.} Kxe5 $2 {[%emt 0:00:01]} (65... Rh3+ $16 {was worth a try.} 66. Ke2 Kxe5) 66. Rxc7 $18 {[%emt 0:00:06]} Kd5 {[%emt 0:00:08]} 67. Ke3 {[%emt 0:00:23] Black must now prevent Kf2.} Rh3+ $2 {[%emt 0:00:33][%mdl 8192] A mistake that costs the game.} (67... Kd6 $16 68. Rg7 Ke5) 68. Kf4 {[%emt 0:00:16] Rd7+ is the strong threat.} Rh4+ {[%emt 0:00:02]} 69. Kg3 {[%emt 0:00:01]} Rh5 {[%emt 0:00:05]} 70. Kg4 {[%emt 0:00:03]} Rh1 {[%emt 0:00:34]} 71. Rg7 {[%emt 0:00:11]} Kd4 {[%emt 0:00:28]} 72. Rxg6 {[%emt 0:00:02]} Rxh7 {[%emt 0:00:01]} 73. Rh6 {[%emt 0:00:05]} Rg7 {[%emt 0:00:27]} 74. Rh2 {[%emt 0:00:25]} c4 {[%emt 0:00:22]} 75. bxc4 {[%emt 0:00:08] Threatening mate with Kf5.} Kxc4 {[%emt 0:00:01]} 76. Rg2 {[%emt 0:00:15] White mates.} Kc3 {[%emt 0:00:24]} 77. Kf5 {[%emt 0:00:01]} Rf7+ {[%emt 0:00:11]} 78. Ke6 {[%emt 0:00:02]} Ra7 {[%emt 0:00:11]} 79. g6 {[%emt 0:00:02]} Ra6+ {[%emt 0:00:03]} 80. Kf5 {[%emt 0:00:05]} Ra5+ {[%emt 0:00:03]} 81. Kf4 {[%emt 0:00:16]} Ra8 {[%emt 0:00:04]} 82. Kg5 {[%emt 0:00:08]} Ra5+ {[%emt 0:00:31]} 83. Kh6 {[%emt 0:00:02]} Ra6 {[%emt 0:00:07]} 84. Kh7 {[%emt 0:00:01]} Ra7+ {[%emt 0:00:13]} 85. g7 {[%emt 0:00:02] Weighted Error Value: White=0.51/Black=0.39} 1-0

[Event "Chinese League Div-A Rapid 2022"]
[Site "Fuling,Chongqing"]
[Date "2022.09.08"]
[Round "3.17"]
[White "Liu, Qingnan"]
[Black "Pang, Tao"]
[Result "1/2-1/2"]
[ECO "C13"]
[WhiteElo "2542"]
[BlackElo "2427"]
[Annotator "TA"]
[PlyCount "53"]
[EventDate "2022.09.07"]
[EventType "team-tourn"]
[EventCountry "CHN"]
[SourceTitle "playchess.com"]
[Source "ChessBase"]
[SourceQuality "1"]
[TimeControl "1500+10"]

{[%evp 14,53,29,23,56,53,53,56,56,66,66,72,70,18,14,12,20,0,37,35,39,20,18,15,25,23,61,61,426,17,16,20,18,21,29,10,10,-12,-12,-12,0,-14]} 1. e4 {[%emt 0:00:01]} e6 {[%emt 0:00:01]} 2. d4 {[%emt 0:00:02]} d5 {[%emt 0:00:01]} 3. Nc3 {[%emt 0:00:02]} Nf6 {[%emt 0:00:01]} 4. Bg5 {[%emt 0:00:07]} dxe4 {[%emt 0:00:06]} 5. Nxe4 {[%emt 0:00:05]} Nbd7 {[%emt 0:00:05]} 6. Nf3 {[%emt 0:00:03]} Be7 {[%emt 0:00:04]} 7. Nxf6+ {[%emt 0:00:16]} Bxf6 $1 {[%emt 0:00:02] The main line 7...Bxf6 scores better than 7...Nxf6.} 8. h4 {[%emt 0:00:09]} b6 {[%emt 0:00:54] C13: French: Classical System: 4 Bg5 Be7, Alekhine-Chatard Attack.} 9. Bb5 {[%emt 0:00:24]} O-O {[%emt 0:01:32]} 10. Bc6 {[%emt 0:01:12] Inhibits Bb7.} Rb8 {[%emt 0:00:09] White is slightly better.} 11. Qd3 {[%emt 0:01:34]} Bb7 {[%emt 0:00:47]} 12. Bxb7 {[%emt 0:00:57] White is much more active. The black rooks are badly placed.} Rxb7 {[%emt 0:00:02]} 13. Qe4 {[%emt 0:02:12]} (13. Bf4 $14) 13... Qc8 $11 {[%emt 0:01:44]} 14. O-O-O {[%emt 0:00:23] [#]} c5 $146 {[%emt 0:00:45]} ({Predecessor:} 14... b5 15. g4 Rb6 16. Bf4 Qa6 17. Kb1 Qa4 18. Qe3 Rc6 19. Qb3 Nc5 20. Qxa4 Nxa4 {½-½ (49) Padmini,R (2383)-Chubar,V (2078) Moscow 2012}) 15. d5 $36 {[%emt 0:03:24][%mdl 2048] White has the initiative.} Re8 {[%emt 0:02:04]} 16. Rhe1 {[%emt 0:02:12]} Rb8 {[%emt 0:01:30]} 17. dxe6 {[%emt 0:02:55]} Rxe6 {[%emt 0:00:01]} 18. Qd5 {[%emt 0:00:01]} Rxe1 {[%emt 0:05:05]} 19. Rxe1 {[%emt 0:00:02]} h6 {[%emt 0:00:01]} 20. Bf4 {[%emt 0:02:00]} Qb7 {[%emt 0:00:00][%mdl 8192] [#]} (20... Rb7 $1 $14) 21. Rd1 $2 {[%emt 0:00:12]} (21. Re8+ $1 $18 {[%mdl 512]} Nf8 22. Qxb7 Rxb7 23. Bd6) 21... Qxd5 {[%emt 0:00:09]} 22. Rxd5 {[%emt 0:00:04]} Rb7 {[%emt 0:00:01]} 23. Rd6 {[%emt 0:03:44]} Kh7 {[%emt 0:00:52]} 24. Rc6 {[%emt 0:00:46]} Nf8 {[%emt 0:00:08] The position is equal.} 25. Rc7 {[%emt 0:02:57]} Rxc7 {[%emt 0:00:01]} 26. Bxc7 {[%emt 0:00:00]} h5 {[%emt 0:00:01]} 27. c3 {[%emt 0:00:07] Weighted Error Value: White=0.46/Black=0.47} 1/2-1/2